fUST/lending_fUST_20250424
["ID","MTS","AMOUNT","RATE_DAILY","PERIOD"]
[358786449,1745425584237,-361.4231003,0.00041068,30]
[358786450,1745425584263,-361.4231003,0.00041068,30]
[358786451,1745425584290,-361.4231003,0.00041068,30]
[358786452,1745425584318,-361.4231003,0.00041068,30]
[358786453,1745425584345,-361.4231003,0.00041068,30]
[358786454,1745425584373,-833.7384628,0.00041068,30]
[358786455,1745425584400,-1000.0,0.00041095,120]
[358786456,1745425584426,-1000.0,0.00041095,120]
[358786457,1745425584452,-1000.0,0.00041095,120]
[358786458,1745425584477,-1000.0,0.00041095,120]
[358786459,1745425584503,-1000.0,0.00041095,120]
[358786460,1745425584529,-1000.0,0.00041095,120]
[358786461,1745425584555,-1000.0,0.00041095,120]
[358786462,1745425584583,-1000.0,0.00041095,120]
[358786463,1745425584608,-1000.0,0.00041095,120]
[358786464,1745425584633,-1000.0,0.00041095,120]
[358786465,1745425584659,-1000.0,0.00041095,120]
[358786466,1745425584684,-1000.0,0.00041095,120]
[358786467,1745425584710,-236.73958955,0.00041095,120]
[358786468,1745425584740,-500.0,0.00041095,120]
[358786469,1745425584766,-500.0,0.00041095,120]
[358786470,1745425584793,-500.0,0.00041095,120]
[358786471,1745425584818,-500.0,0.00041095,120]
[358786472,1745425584847,-500.0,0.00041095,120]
[358786473,1745425584874,-500.0,0.00041095,120]
[358786474,1745425584901,-500.0,0.00041095,120]
[358786475,1745425584928,-500.0,0.00041095,120]
[358786476,1745425584979,-500.0,0.00041095,120]
[358786478,1745425585007,-323.72339821,0.00041095,120]
[358786479,1745425585035,-2000.0,0.00041095,30]
[358786480,1745425585064,-2000.0,0.00041095,30]
[358786481,1745425585091,-1632.20903393,0.00041095,30]
[358786482,1745425585117,-529.34579587,0.00041095,120]
[358786483,1745425585143,-500.0,0.00041095,120]
[358786484,1745425585170,-500.0,0.00041095,120]
[358786485,1745425585196,-500.0,0.00041095,120]
[358786486,1745425585223,-500.0,0.00041095,120]
[358786487,1745425585249,-500.0,0.00041095,120]
[358786488,1745425585275,-500.0,0.00041095,120]
[358786489,1745425585304,-500.0,0.00041095,120]
[358786490,1745425585331,-500.0,0.00041095,120]
[358786491,1745425585359,-500.0,0.00041095,120]
[358786492,1745425585386,-500.0,0.00041095,120]
[358786493,1745425585413,-500.0,0.00041095,120]
[358786494,1745425585440,-500.0,0.00041095,120]
[358786495,1745425585467,-632.66328873,0.00041095,120]
[358786496,1745425585494,-500.0,0.00041095,120]
[358786497,1745425585523,-1111.07,0.00041205,120]
[358786498,1745425585553,-157.2221142,0.00041205,30]
[358786499,1745425585581,-157.2221142,0.00041205,30]
[358786500,1745425585609,-157.2221142,0.00041205,30]
[358786501,1745425585636,-157.2221142,0.00041205,30]
[358786502,1745425585664,-157.2221142,0.00041205,30]
[358786503,1745425585691,-157.2221142,0.00041205,30]
[358786504,1745425585718,-157.2221142,0.00041205,30]
[358786505,1745425585744,-157.2221142,0.00041205,30]
[358786506,1745425585771,-174.7929467,0.00041205,30]
[358786507,1745425585800,-174.7929467,0.00041205,30]
[358786508,1745425585830,-1111.07,0.00041355,120]
[358786509,1745425585856,-1133.0690144,0.00041419,30]
[358786510,1745425585884,-566.5345072,0.00041419,30]
[358786511,1745425585912,-566.5345072,0.00041419,30]
[358786512,1745425585940,-566.5345072,0.00041419,30]
[358786513,1745425585970,-5000.0,0.000415,80]
[358786514,1745425585997,-1111.07,0.00041505,120]
[358786515,1745425586024,-518.99085932,0.0004153,60]
[358786516,1745425586054,-200.0,0.00041653,120]
[358786517,1745425586081,-1111.07,0.00041655,120]
[358786518,1745425586107,-566.5345072,0.00041748,30]
[358786519,1745425586134,-153.0,0.00041748,30]
[358786520,1745425586164,-153.0,0.00041748,30]
[358786522,1745425586190,-153.0,0.00041748,30]
[358786523,1745425586215,-306.0,0.00041748,30]
[358786524,1745425586241,-351.2126582,0.00041748,30]
[358786525,1745425586266,-1111.07,0.00041805,120]
[358786526,1745425586434,-216.0,0.00041885,90]
[358786527,1745425586462,-200.0,0.00041898,120]
[358786528,1745425586488,-200000.0,0.000419,120]
[358786529,1745425586514,-1111.07,0.00041955,120]
[358786530,1745425586541,-292.25,0.0004197,120]
[358786531,1745425586568,-1546.0,0.0004197,120]
[358786532,1745425586594,-1546.0,0.0004197,120]
[358786533,1745425586619,-150.5,0.0004198,120]
[358786534,1745425586644,-150.5,0.0004198,120]
[358786535,1745425586670,-1546.0,0.0004198,120]
[358786536,1745425586694,-1546.0,0.0004198,120]
[358786537,1745425586719,-1546.0,0.0004198,120]
[358786538,1745425586743,-1550.83,0.0004198,120]
[358786539,1745425586768,-150.5,0.0004199,120]
[358786540,1745425586792,-150.5,0.0004199,120]
[358786541,1745425586818,-1546.0,0.0004199,120]
[358786542,1745425586842,-1546.0,0.0004199,120]
[358786543,1745425586867,-1546.0,0.0004199,120]
[358786544,1745425586891,-1546.0,0.0004199,120]
[358786545,1745425586918,-190.950613,0.00041995,120]
[358786546,1745425586947,-190.950613,0.00041995,120]
[358786547,1745425586976,-190.950613,0.00041995,120]
[358786548,1745425587001,-190.950609,0.00041995,120]
[358786549,1745425587027,-864.60222638,0.00042,30]
[358786551,1745425587054,-300.0,0.00042,120]
[358786552,1745425587080,-151.0,0.00042,120]
[358786553,1745425587105,-1965.71,0.00042,120]
[358786554,1745425587129,-10000.0,0.00042,120]
[358786555,1745425587153,-94186.0,0.00042,30]
[358786556,1745425587179,-1000.0,0.00042,120]
[358786558,1745425587204,-315.527395,0.00042,57]
[358786559,1745425587228,-500.0,0.00042,57]
[358786560,1745425587253,-21434.39,0.00042,30]
[358786561,1745425587278,-295.539,0.00042019,120]
[358786562,1745425587304,-152.456936,0.00042019,120]
[358786563,1745425587329,-152.456936,0.00042019,120]
[358786564,1745425587355,-152.456936,0.00042019,120]
[358786565,1745425587381,-152.45694,0.00042019,120]
[358786566,1745425587407,-151.0,0.00042019,120]
[358786567,1745425587433,-174.7929467,0.00042027,30]
[358786568,1745425587458,-361.4231003,0.00042027,30]
[358786569,1745425587484,-361.4231003,0.00042027,30]
[358786570,1745425587512,-174.7929467,0.00042027,30]
[358786571,1745425587537,-361.4231003,0.00042027,30]
[358786572,1745425587563,-174.7929467,0.00042027,30]
[358786573,1745425587588,-361.4231003,0.00042027,30]
[358786574,1745425587613,-174.7929467,0.00042027,30]
[358786575,1745425587640,-361.4231003,0.00042027,30]
[358786576,1745425587666,-174.7929467,0.00042027,30]
[358786577,1745425587691,-361.4231003,0.00042027,30]
[358786578,1745425587716,-455.4313092,0.00042027,30]
[358786579,1745425587741,-361.4231003,0.00042027,30]
[358786580,1745425587766,-361.4231003,0.00042027,30]
[358786581,1745425587790,-361.4231003,0.00042027,30]
[358786582,1745425587818,-361.4231003,0.00042027,30]
[358786583,1745425587845,-618.0199144,0.00042027,30]
[358786584,1745425587876,-3000.0,0.00042038,60]
[358786585,1745425587903,-500.0,0.000421,58]
[358786586,1745425587928,-1111.07,0.00042105,120]
[358786587,1745425587955,-500.0,0.000422,59]
[358786588,1745425587987,-566.5345072,0.00042241,30]
[358786589,1745425588016,-566.5345072,0.00042241,30]
[358786590,1745425588042,-566.5345072,0.00042241,30]
[358786591,1745425588069,-566.5345072,0.00042241,30]
[358786592,1745425588095,-566.5345072,0.00042241,30]
[358786593,1745425588121,-566.5345072,0.00042241,30]
[358786594,1745425588147,-1111.07,0.00042255,120]
[358786595,1745425588173,-500.0,0.000423,59]
[358786596,1745425588198,-500.0,0.000424,60]
[358786597,1745425588225,-1111.07,0.00042405,120]
[358786598,1745425588251,-2000.0,0.000425,120]
[358786599,1745425588276,-2000.0,0.000425,120]
[358786600,1745425588303,-2000.0,0.000425,120]
[358786601,1745425588328,-2000.0,0.000425,120]
[358786602,1745425588353,-2000.0,0.000425,120]
[358786603,1745425588378,-2000.0,0.000425,120]
[358786604,1745425588403,-5181.34,0.000425,120]
[358786605,1745425588428,-505.077747,0.000425,61]
[358786606,1745425588455,-200.0,0.00042513,120]
[358786607,1745425588481,-1111.07,0.00042555,120]
[358786608,1745425588508,-566.5345072,0.00042569,30]
[358786609,1745425588533,-566.5345072,0.00042569,30]
[358786610,1745425588564,-566.5345072,0.00042569,30]
[358786611,1745425588594,-566.5345072,0.00042569,30]
[358786612,1745425588621,-566.5345072,0.00042569,30]
[358786613,1745425588647,-566.5345072,0.00042569,30]
[358786614,1745425588672,-566.5345072,0.00042569,30]
[358786615,1745425588697,-566.5345072,0.00042569,30]
[358786616,1745425588723,-566.5345072,0.00042569,30]
[358786617,1745425588749,-566.5345072,0.00042569,30]
[358786618,1745425588775,-566.5345072,0.00042569,30]
[358786619,1745425588804,-566.5345072,0.00042569,30]
[358786620,1745425588831,-566.5345072,0.00042569,30]
[358786621,1745425588858,-566.5345072,0.00042569,30]
[358786622,1745425588884,-566.5345072,0.00042569,30]
[358786623,1745425589038,-566.5345072,0.00042569,30]
[358786624,1745425589071,-566.5345072,0.00042569,30]
[358786625,1745425589098,-566.5345072,0.00042569,30]
[358786626,1745425589125,-566.5345072,0.00042569,30]
[358786627,1745425589152,-566.5345072,0.00042569,30]
[358786628,1745425589179,-566.5345072,0.00042569,30]
[358786629,1745425589205,-566.5345072,0.00042569,30]
[358786630,1745425589231,-566.5345072,0.00042569,30]
[358786631,1745425589256,-153.0,0.00042569,30]
[358786632,1745425589281,-566.5345072,0.00042569,30]
[358786633,1745425589306,-153.0,0.00042569,30]
[358786634,1745425589331,-566.5345072,0.00042569,30]
[358786635,1745425589356,-419.5635283,0.00042569,30]
[358786636,1745425589381,-566.5345072,0.00042569,30]
[358786637,1745425589407,-200.0,0.000427,120]
[358786638,1745425589432,-1111.07,0.00042705,120]
[358786639,1745425589459,-2531.49,0.000428,30]
[358786640,1745425589484,-808.94,0.000428,120]
[358786641,1745425589510,-1111.07,0.00042855,120]
[358786642,1745425589534,-200.74,0.0004288,120]
[358786643,1745425589564,-917.3,0.000429,30]
[358786644,1745425589590,-200.0,0.00043,120]
[358786645,1745425589617,-91016.05045645,0.00043,120]
[358786646,1745425589643,-1109.87790224,0.00043,120]
[358786647,1745425589669,-897.6742869,0.00043,120]
[358786648,1745425589695,-269.4731585,0.00043,30]
[358786649,1745425589720,-33736.82118165,0.00043,120]
[358786650,1745425589746,-1000.0,0.00043,120]
[358786651,1745425589771,-259.0,0.00043,120]
[358786652,1745425589796,-10000.0,0.00043,120]
[358786653,1745425589823,-301.64527447,0.00043,120]
[358786654,1745425589848,-5045.08946136,0.00043,120]
[358786655,1745425589875,-1111.07,0.00043005,120]
[358786656,1745425589902,-500.0,0.00043038,120]
[358786657,1745425589927,-3000.0,0.00043134,60]
[358786658,1745425589952,-1111.07,0.00043155,120]
[358786659,1745425589982,-5000.0,0.00043264,30]
[358786660,1745425590010,-5000.0,0.00043264,30]
[358786661,1745425590045,-5000.0,0.00043264,30]
[358786662,1745425590070,-5000.0,0.00043264,30]
[358786663,1745425590096,-5000.0,0.00043264,30]
[358786664,1745425590122,-5000.0,0.00043264,30]
[358786665,1745425590148,-5000.0,0.00043264,30]
[358786666,1745425590173,-5000.0,0.00043264,30]
[358786667,1745425590198,-5000.0,0.00043264,30]
[358786668,1745425590224,-5000.0,0.00043264,30]
[358786669,1745425590249,-5000.0,0.00043264,30]
[358786670,1745425590274,-5000.0,0.00043264,30]
[358786671,1745425590300,-5000.0,0.00043264,30]
[358786672,1745425590325,-5000.0,0.00043264,30]
[358786673,1745425590351,-5000.0,0.00043264,30]
[358786674,1745425590376,-5000.0,0.00043264,30]
[358786675,1745425590402,-5000.0,0.00043264,30]
[358786676,1745425590427,-5000.0,0.00043264,30]
[358786677,1745425590453,-5000.0,0.00043264,30]
[358786678,1745425590478,-5000.0,0.00043264,30]
[358786679,1745425590503,-5000.0,0.00043264,30]
[358786680,1745425590530,-4376.35,0.00043264,30]
[358786681,1745425590558,-1111.07,0.00043305,120]
[358786682,1745425590585,-153.0,0.00043391,30]
[358786683,1745425590612,-153.0,0.00043391,30]
[358786684,1745425590653,-153.0,0.00043391,30]
[358786685,1745425590680,-153.0,0.00043391,30]
[358786686,1745425590708,-153.0,0.00043391,30]
[358786687,1745425590741,-153.0,0.00043391,30]
[358786688,1745425590769,-153.0,0.00043391,30]
[358786689,1745425590796,-153.0,0.00043391,30]
[358786690,1745425590824,-153.0,0.00043391,30]
[358786691,1745425590852,-566.5345072,0.00043391,30]
[358786692,1745425590879,-153.0,0.00043391,30]
[358786693,1745425590906,-153.0,0.00043391,30]
[358786694,1745425590933,-1111.07,0.00043455,120]
[358786695,1745425590964,-4999.999999,0.000435,90]
[358786696,1745425590997,-157.2221142,0.00043541,30]
[358786697,1745425591026,-200.0,0.00043591,120]
[358786698,1745425591056,-1111.07,0.00043605,120]
[358786699,1745425591083,-200.0,0.0004363,63]
[358786700,1745425591110,-1111.07,0.00043755,120]
[358786701,1745425591138,-1000.0,0.000438,90]
[358786702,1745425591166,-158.41246992,0.000438,120]
[358786703,1745425591195,-1635.97,0.00043835,120]
[358786704,1745425591225,-1000.0,0.00043835,120]
[358786705,1745425591252,-1000.0,0.00043835,120]
[358786706,1745425591280,-1000.0,0.00043835,120]
[358786707,1745425591307,-1000.0,0.00043835,120]
[358786708,1745425591333,-1000.0,0.00043835,120]
[358786709,1745425591361,-1000.0,0.00043835,120]
[358786710,1745425591394,-1000.0,0.00043835,120]
[358786711,1745425591421,-1000.0,0.00043835,120]
[358786712,1745425591449,-1000.0,0.00043835,120]
[358786713,1745425591477,-1000.0,0.00043835,120]
[358786714,1745425591504,-1000.0,0.00043835,120]
[358786715,1745425591534,-1000.0,0.00043835,120]
[358786716,1745425591561,-1000.0,0.00043835,120]
[358786717,1745425591588,-945.73322041,0.00043835,120]
[358786718,1745425591794,-9198.6,0.00043835,120]
[358786719,1745425591823,-50000.0,0.00043836,120]
[358786720,1745425591852,-500.0,0.00043836,120]
[358786721,1745425591879,-500.0,0.00043836,120]
[358786722,1745425591905,-500.0,0.00043836,120]
[358786723,1745425591931,-500.0,0.00043836,120]
[358786724,1745425591961,-500.0,0.00043836,120]
[358786725,1745425591987,-500.0,0.00043836,120]
[358786726,1745425592016,-500.0,0.00043836,120]
[358786727,1745425592045,-500.0,0.00043836,120]
[358786728,1745425592075,-500.0,0.00043836,120]
[358786729,1745425592103,-500.0,0.00043836,120]
[358786730,1745425592131,-500.0,0.00043836,120]
[358786731,1745425592158,-500.0,0.00043836,120]
[358786732,1745425592184,-500.0,0.00043836,120]
[358786733,1745425592210,-500.0,0.00043836,120]
[358786734,1745425592236,-500.0,0.00043836,120]
[358786735,1745425592261,-500.0,0.00043836,120]
[358786736,1745425592287,-500.0,0.00043836,120]
[358786737,1745425592315,-500.0,0.00043836,120]
[358786738,1745425592340,-500.0,0.00043836,120]
[358786739,1745425592367,-500.0,0.00043836,120]
[358786740,1745425592393,-500.0,0.00043836,120]
[358786741,1745425592420,-500.0,0.00043836,120]
[358786742,1745425592446,-210.21014286,0.00043836,120]
[358786743,1745425592471,-500.0,0.00043836,120]
[358786744,1745425592497,-500.0,0.00043836,120]
[358786745,1745425592523,-500.0,0.00043836,120]
[358786746,1745425592548,-500.0,0.00043836,120]
[358786747,1745425592577,-500.0,0.00043836,120]
[358786748,1745425592603,-500.0,0.00043836,120]
[358786749,1745425592629,-500.0,0.00043836,120]
[358786750,1745425592655,-500.0,0.00043836,120]
[358786751,1745425592681,-500.0,0.00043836,120]
[358786752,1745425592706,-500.0,0.00043836,120]
[358786753,1745425592732,-500.0,0.00043836,120]
[358786754,1745425592757,-500.0,0.00043836,120]
[358786755,1745425592784,-500.0,0.00043836,120]
[358786756,1745425592814,-500.0,0.00043836,120]
[358786757,1745425592842,-391.89128572,0.00043836,120]
[358786758,1745425592869,-500.0,0.00043836,120]
[358786759,1745425592895,-500.0,0.00043836,120]
[358786760,1745425592923,-500.0,0.00043836,120]
[358786761,1745425592950,-250.0,0.00043836,120]
[358786762,1745425592980,-500.0,0.00043836,120]
[358786763,1745425593007,-500.0,0.00043836,120]
[358786764,1745425593036,-500.0,0.00043836,120]
[358786765,1745425593067,-250.0,0.00043836,120]
[358786766,1745425593095,-1635.97,0.00043863,120]
[358786767,1745425593123,-1635.97,0.0004389,120]
[358786768,1745425593152,-190695.00128152,0.000439,30]
[358786769,1745425593179,-59304.34094922,0.000439,120]
[358786770,1745425599759,-4271.59437665,0.000399,120]
[358786771,1745425599789,-361.4231003,0.0004011,30]
[358786772,1745425599818,-174.7929467,0.00040384,30]
[358786773,1745425599858,-362495.34935907,0.000439,120]
[358786774,1745425599886,-299379.44501608,0.000439,120]
[358786775,1745425599915,-1111.07,0.00043905,120]
[358786776,1745425599943,-1635.97,0.00043917,120]
[358786777,1745425599971,-1635.97,0.00043945,120]
[358786778,1745425599998,-1635.97,0.00043972,120]
[358786779,1745425600026,-1635.97,0.00043999,120]
[358786780,1745425600052,-8000.0,0.00044,30]
[358786781,1745425600081,-300.0,0.00044,120]
[358786782,1745425600107,-286.8436245,0.00044,30]
[358786783,1745425600134,-2567.67867322,0.00044,120]
[358786784,1745425600160,-1000.0,0.00044,120]
[358786786,1745425600187,-202206.82952275,0.00044,30]
[358786787,1745425600213,-1635.97,0.00044027,120]
[358786788,1745425600239,-1635.97,0.00044054,120]
[358786789,1745425600265,-1111.07,0.00044055,120]
[358786790,1745425600293,-1635.97,0.00044082,120]
[358786791,1745425600319,-1635.97,0.00044109,120]
[358786792,1745425600347,-200.0,0.0004412,120]
[358786793,1745425600374,-1635.97,0.00044136,120]
[358786796,1745425600570,-1635.97,0.00044164,120]
[358786797,1745425600599,-1635.97,0.00044191,120]
[358786798,1745425600626,-1111.07,0.00044205,120]
[358786799,1745425600653,-1181.4388074,0.00044213,30]
[358786800,1745425600680,-1635.97,0.00044219,120]
[358786801,1745425600706,-3000.0,0.0004423,120]
[358786802,1745425600732,-1635.97,0.00044246,120]
[358786803,1745425600757,-1635.97,0.00044273,120]
[358786804,1745425600782,-1635.97,0.00044301,120]
[358786805,1745425600810,-1635.97,0.00044328,120]
[358786806,1745425600837,-151931.0,0.0004433,30]
[358786807,1745425600863,-1111.07,0.00044355,120]
[358786808,1745425600890,-1635.97,0.00044356,120]
[358786809,1745425600917,-5000.0,0.00044362,30]
[358786810,1745425600944,-1635.97,0.00044383,120]
[358786811,1745425600970,-400000.0,0.000444,30]
[358786812,1745425600996,-1635.97,0.0004441,120]
[358786813,1745425601023,-1902.60742764,0.00044424,120]
[358786814,1745425601051,-1635.97,0.00044438,120]
[358786815,1745425601079,-360.3815261,0.00044449,120]
[358786816,1745425601107,-1636.08770118,0.00044465,120]
[358786817,1745425601133,-216.0,0.00044503,90]
[358786818,1745425601160,-1111.07,0.00044505,120]
[358786819,1745425601185,-200.0,0.000446,120]
[358786820,1745425601211,-1111.07,0.00044655,120]
[358786821,1745425601236,-200.0,0.00044663,120]
[358786822,1745425601261,-354.8548518,0.00044735,120]
[358786823,1745425601287,-3000.0,0.00044778,120]
[358786824,1745425601313,-105106.11154212,0.000448,120]
[358786825,1745425601339,-1111.07,0.00044805,120]
[358786826,1745425601364,-1833.16203176,0.00044834,120]
[358786827,1745425601389,-216.0,0.00044877,90]
[358786828,1745425601414,-328.46,0.00044887,30]
[358786829,1745425601440,-331.55872241,0.000449,120]
[358786830,1745425601465,-4454.62,0.000449,120]
[358786831,1745425601490,-1111.07,0.00044955,120]
[358786832,1745425601515,-174.59213858,0.0004499,120]
[358786833,1745425601541,-917.3,0.00045,30]
[358786834,1745425601567,-2531.49,0.00045,30]
[358786835,1745425601593,-200.0,0.00045,120]
[358786836,1745425601618,-1500.0,0.00045,120]
[358786837,1745425601644,-908.7806478,0.00045,120]
[358786838,1745425601670,-340.75447691,0.00045,120]
[358786839,1745425601695,-776.4998457,0.00045,120]
[358786840,1745425601720,-500.0,0.00045,60]
[358786841,1745425601746,-40200.0,0.00045,120]
[358786842,1745425601770,-196.0,0.00045,120]
[358786843,1745425601795,-30595.80246046,0.00045,30]
[358786844,1745425601823,-246.25,0.00045,120]
[358786845,1745425601849,-18466.8099612,0.00045,120]
[358786846,1745425601875,-29234.28,0.00045,120]
[358786847,1745425601901,-200.0,0.00045,30]
[358786848,1745425601927,-1020.94043187,0.00045,120]
[358786849,1745425601952,-390.0958122,0.00045,30]
[358786850,1745425601982,-2330.95806358,0.00045,120]
[358786851,1745425602008,-482.39561823,0.00045,120]
[358786852,1745425602035,-290.10530423,0.00045,30]
[358786853,1745425602064,-151.0,0.00045,120]
[358786854,1745425602090,-5005.60074466,0.00045,120]
[358786855,1745425602115,-26957.25029732,0.00045,30]
[358786856,1745425602140,-567.10989607,0.00045,120]
[358786857,1745425602165,-224.0,0.00045,120]
[358786858,1745425602191,-785.6536825,0.00045,60]
[358786859,1745425602215,-8158.87798466,0.00045,30]
[358786860,1745425602241,-200.0,0.00045,30]
[358786861,1745425602267,-10000.0,0.00045,40]
[358786862,1745425602292,-1093.47477661,0.00045,120]
[358786863,1745425602318,-5000.0,0.00045,120]
[358786864,1745425602344,-1884.0,0.00045,120]
[358786865,1745425602373,-1060.32,0.00045,30]
[358786866,1745425602399,-500.0,0.00045,30]
[358786867,1745425602424,-447.2907745,0.00045035,30]
[358786868,1745425602450,-566.5345072,0.00045035,30]
[358786869,1745425602476,-566.5345072,0.00045035,30]
[358786870,1745425602501,-566.5345072,0.00045035,30]
[358786871,1745425602527,-1111.07,0.00045105,120]
[358786872,1745425602553,-177.9906709,0.00045168,30]
[358786873,1745425602580,-188.0,0.00045205,120]
[358786874,1745425602606,-188.0,0.00045205,120]
[358786875,1745425602631,-188.0,0.00045205,120]
[358786876,1745425602657,-188.0,0.00045205,120]
[358786877,1745425602681,-188.0,0.00045205,120]
[358786878,1745425602707,-188.0,0.00045205,120]
[358786879,1745425602733,-188.0,0.00045205,120]
[358786880,1745425602757,-188.0,0.00045205,120]
[358786881,1745425602782,-188.0,0.00045205,120]
[358786882,1745425602809,-188.0,0.00045205,120]
[358786883,1745425602836,-188.0,0.00045205,120]
[358786884,1745425602862,-188.0,0.00045205,120]
[358786885,1745425602887,-188.0,0.00045205,120]
[358786886,1745425602913,-188.0,0.00045205,120]
[358786887,1745425602942,-222.28962816,0.00045205,120]
[358786888,1745425602970,-4006.06347766,0.00045205,120]
[358786889,1745425602998,-200.0,0.00045242,120]
[358786890,1745425603025,-1111.07,0.00045255,120]
[358786891,1745425603054,-3000.0,0.00045326,120]
[358786892,1745425603218,-200.0,0.00045399,120]
[358786893,1745425603246,-160.0,0.000454,120]
[358786894,1745425603274,-1111.07,0.00045405,120]
[358786895,1745425603301,-1500.0,0.0004543,30]
[358786896,1745425603328,-200.0,0.00045456,120]
[358786897,1745425603356,-5000.0,0.00045487,30]
[358786898,1745425603383,-1398.0,0.00045498,34]
[358786899,1745425603410,-6228.52,0.000455,120]
[358786900,1745425603436,-1111.07,0.00045555,120]
[358786901,1745425603463,-1111.07,0.00045705,120]
[358786902,1745425603491,-200.0,0.0004571,120]
[358786903,1745425603521,-153.0,0.00045741,30]
[358786904,1745425603548,-169.6766321,0.00045769,120]
[358786905,1745425603578,-200.0,0.00045779,120]
[358786906,1745425603604,-1111.07,0.00045855,120]
[358786907,1745425603629,-3000.0,0.00045874,120]
[358786908,1745425603656,-220.49481691,0.000459,120]
[358786909,1745425603682,-157.2221142,0.00046,30]
[358786910,1745425603708,-300.0,0.00046,120]
[358786911,1745425603733,-93538.02878271,0.00046,120]
[358786912,1745425603758,-818.64768252,0.00046,120]
[358786913,1745425603783,-11565.16191795,0.00046,120]
[358786914,1745425603808,-200.0,0.00046,30]
[358786915,1745425603835,-10000.0,0.00046,120]
[358786916,1745425603863,-270.69,0.00046,60]
[358786917,1745425603889,-1653.35780516,0.00046,120]
[358786918,1745425603915,-1111.07,0.00046005,120]
[358786919,1745425603941,-1111.07,0.00046155,120]
[358786920,1745425603970,-663.159,0.00046172,76]
[358786921,1745425603996,-155.0,0.00046221,120]
[358786922,1745425604022,-1100.71,0.00046301,30]
[358786923,1745425604049,-242.5357098,0.00046301,30]
[358786924,1745425604076,-1111.07,0.00046305,120]
[358786925,1745425604108,-153.0,0.0004635,30]
[358786926,1745425604136,-153.0,0.0004635,30]
[358786927,1745425604163,-153.0,0.0004635,30]
[358786928,1745425604190,-1812.52942511,0.00046422,120]
[358786929,1745425604216,-1111.07,0.00046455,120]
[358786930,1745425604243,-200.0,0.0004649,71]
[358786931,1745425604269,-2000.0,0.000465,120]
[358786932,1745425604295,-229.9092,0.000465,120]
[358786933,1745425604322,-5000.0,0.000465,120]
[358786934,1745425604351,-200.0,0.00046519,120]
[358786935,1745425604377,-200.0,0.00046569,120]
[358786936,1745425604402,-1100.71,0.00046575,32]
[358786937,1745425604427,-6554.81404082,0.00046575,30]
[358786938,1745425604454,-9198.6,0.00046575,120]
[358786939,1745425604479,-4000.0,0.00046575,120]
[358786940,1745425604655,160.0,0.00036,30]
[358786941,1745425604697,160.0,0.00037,120]
[358786942,1745425604759,160.0,0.00037,30]
[358786944,1745425613423,147097.61,0.000329,30]
[358786945,1745425613822,147097.61,0.000339,30]
[358786946,1745425614162,147097.61,0.000347,30]
[358786947,1745425621380,230.0,0.00042038,31]
[358786948,1745425624535,5586.0,0.00042038,31]
[358786949,1745425625189,915.0,0.00042038,31]
[358786950,1745425625231,290.0,0.00042038,31]
[358786951,1745425626030,192.0,0.00042038,31]
[358786956,1745425665242,500.0,0.00042038,120]
[358786966,1745425723150,9999.99999989,0.00042018,120]
[358787008,1745425837801,-2286.8632066,0.00019078,2]
[358787009,1745425837811,-300.0,0.00019172,2]
[358787010,1745425837821,-605.0,0.00019172,2]